bitfinex-derivatives/quotes_SOLF0:USTF0_20250514
["timestamp","ask_amount","ask_price","bid_price","bid_amount"]
[1747204893969,56.14,183.32,183.25,56.22]
[1747204894863,4.22491306,183.37,183.25,56.22]
[1747204895068,1.7625,183.38,183.25,112.32]
[1747204895069,56.1,183.36,183.25,112.32]
[1747204895366,56.1,183.36,183.26,5.469]
[1747204895565,56.1,183.36,183.33,5.4548]
[1747204895967,56.1,183.36,183.26,5.469]
[1747204897973,56.1,183.36,183.34,5.4543]
[1747204898474,56.1,183.36,183.26,5.469]
[1747204898673,56.1,183.36,183.25,56.22]
[1747204899374,56.1,183.36,183.3,5.4555]
[1747204899874,4.22491306,183.35,183.32,5.4551]
[1747204900075,4.22491306,183.35,183.25,56.22]
[1747204900675,56.0,183.34,183.25,56.22]
[1747204901174,56.0,183.34,183.33,5.4549]
[1747204904378,3.4795,183.39,183.31,56.24]
[1747204904673,56.0,183.39,183.31,56.24]
[1747204904873,56.0,183.39,183.38,5.4534]
[1747204906373,56.0,183.44,183.41,5.4525]
[1747204906567,56.0,183.43,183.41,5.4525]
[1747204907877,56.0,183.43,183.42,5.4522]
[1747204908873,56.0,183.44,183.43,5.4519]
[1747204909073,112.0,183.44,183.43,5.4519]
[1747204909273,56.0,183.44,183.43,5.4519]
[1747204915280,56.0,183.44,183.42,5.4521]
[1747204915881,56.0,183.44,183.37,56.0]
[1747204916880,56.0,183.44,183.41,5.4523]
[1747204918282,61.4517,183.44,183.4,5.4527]
[1747204918581,61.4517,183.44,183.37,56.0]
[1747204918977,61.4517,183.44,183.4,5.4525]
[1747204919177,56.0,183.44,183.37,56.0]
[1747204920478,56.0,183.44,183.41,5.4524]
[1747204920779,56.0,183.44,183.37,56.0]
[1747204920980,56.0,183.44,183.42,5.452]
[1747204921175,56.0,183.44,183.37,56.0]
[1747204921381,5.4526,183.41,183.33,55.98]
[1747204921777,5.4529,183.4,183.33,55.98]
[1747204921976,55.98,183.39,183.33,55.98]
[1747204922387,55.98,183.39,183.37,5.4536]
[1747204922682,55.98,183.39,183.33,55.98]
[1747204923583,55.98,183.39,183.38,5.4534]
[1747204924880,55.98,183.39,183.36,5.4538]
[1747204925082,65.65801306,183.39,183.33,55.98]
[1747204925685,65.65801306,183.39,183.35,5.4542]
[1747204926487,61.4331,183.39,183.35,5.4542]
[1747204926691,55.98,183.39,183.29,55.98]
[1747204927885,5.4536,183.38,183.33,5.4546]
[1747204928083,5.4536,183.38,183.29,55.98]
[1747204928385,5.4542,183.36,183.29,55.98]
[1747204928790,4.22491306,183.35,183.29,55.98]
[1747204929091,56.95915953,183.34,183.25,55.98]
[1747204929392,57.702,183.34,183.25,55.98]
[1747204929585,59.4111,183.34,183.25,55.98]
[1747204929891,5.4554,183.32,183.25,55.98]
[1747204930392,5.4554,183.32,183.27,5.4565]
[1747204930889,5.4554,183.32,183.28,5.4562]
[1747204931389,55.98,183.33,183.25,55.98]
[1747204932991,55.98,183.33,183.3,5.4557]
[1747204933998,55.98,183.33,183.31,5.4555]
[1747204934296,56.0,183.34,183.25,55.98]
[1747204934690,56.0,183.34,183.33,5.4549]
[1747204935197,56.0,183.34,183.32,5.4551]
[1747204935391,56.0,183.34,183.25,55.98]
[1747204936595,56.0,183.34,183.33,5.4549]
[1747204939798,56.0,183.34,183.32,5.4551]
[1747204940303,56.0,183.34,183.33,5.4549]
[1747204940498,56.0,183.34,183.25,55.98]
[1747204940996,56.0,183.34,183.32,5.4551]
[1747204941191,56.0,183.34,183.25,55.98]
[1747204941998,56.0,183.34,183.31,5.4552]
[1747204943399,56.0,183.34,183.29,5.4558]
[1747204943691,111.98,183.34,183.25,55.98]
[1747204943896,8.9563,183.33,183.3,5.4557]
[1747204944090,3.5013,183.33,183.25,55.98]
[1747204945293,3.5013,183.33,183.32,5.4552]
[1747204945898,3.5013,183.33,183.25,55.98]
[1747204946697,3.5013,183.33,183.29,5.4559]
[1747204946897,3.5013,183.33,183.25,55.98]
[1747204947296,8.9563,183.33,183.29,5.4558]
[1747204947496,8.9563,183.33,183.25,55.98]
[1747204948899,5.4553,183.32,183.25,55.98]
[1747204949097,4.22491306,183.32,183.25,55.98]
[1747204949293,4.22491306,183.32,183.2,10.917]
[1747204949498,4.22491306,183.32,183.21,56.0]
[1747204949702,9.68021306,183.32,183.21,56.0]
[1747204950202,5.4555,183.31,183.21,56.0]
[1747204950500,56.0,183.3,183.21,56.0]
[1747204951502,56.0,183.3,183.29,5.4561]
[1747204955507,3.5013,183.33,183.21,56.0]
[1747204955705,57.7507,183.34,183.22,5.4486]
[1747204955902,56.0,183.33,183.22,5.4486]
[1747204956208,56.0,183.33,183.32,5.4552]
[1747204957807,364.0,183.38,183.27,56.0]
[1747204958012,56.0,183.37,183.27,56.0]
[1747204958309,56.0,183.37,183.27,112.0]
[1747204958511,56.0,183.37,183.34,5.4545]
[1747204959812,56.0,183.37,183.35,5.4542]
[1747204960010,61.4537,183.37,183.27,112.0]
[1747204960409,61.4537,183.37,183.34,5.4545]
[1747204960810,61.4537,183.37,183.27,112.0]
[1747204961210,56.0,183.37,183.27,112.0]
[1747204961706,61.4539,183.37,183.34,5.4545]
[1747204962115,56.0,183.37,183.35,5.4542]
[1747204968419,56.0,183.37,183.36,5.454]
[1747204970722,56.0,183.37,183.35,5.4542]
[1747204974221,61.4537,183.37,183.34,5.4545]
[1747204974520,56.0,183.37,183.27,122.9132]
[1747204975422,61.4538,183.37,183.27,122.9132]
[1747204976025,61.4538,183.37,183.34,5.4544]
[1747204976718,56.0,183.37,183.35,5.4541]
[1747204976927,56.0,183.37,183.27,122.9132]
[1747204978425,56.0,183.37,183.34,5.4544]
[1747204978928,61.4537,183.37,183.33,5.4548]
[1747204980427,5.454,183.36,183.33,5.4548]
[1747204980623,5.454,183.36,183.34,5.4545]
[1747204985131,61.4537,183.37,183.34,5.4545]
[1747204985626,61.4537,183.37,183.35,5.4543]
[1747204985926,61.4537,183.37,183.27,122.9132]
[1747204986126,61.4537,183.37,183.34,5.4544]
[1747204986932,56.0,183.37,183.35,5.4542]
[1747204987228,56.0,183.37,183.27,122.9132]
[1747204988232,364.0,183.38,183.27,122.9132]
[1747204988528,55.94,183.36,183.27,122.9132]
[1747204988727,55.94,183.36,183.35,5.454]
[1747204988928,55.94,183.37,183.35,5.454]
[1747204989229,369.4534,183.38,183.35,5.454]
[1747204989425,55.94,183.37,183.35,5.454]
[1747204990027,364.0,183.38,183.37,5.4537]
[1747204990233,55.94,183.41,183.31,55.96]
[1747204990425,55.94,183.41,183.32,61.2449]
[1747204990629,55.94,183.43,183.32,61.2449]
[1747204990922,55.94,183.43,183.32,72.1552]
[1747204991626,55.96,183.44,183.32,72.1552]
[1747204991830,55.92,183.42,183.32,72.1552]
[1747204992031,55.92,183.42,183.41,5.4525]
[1747204994630,55.96,183.44,183.43,5.4519]
[1747204994837,55.92,183.44,183.43,5.4519]
[1747204995238,4.21604194,183.45,183.43,5.4519]
[1747204995432,55.92,183.44,183.43,5.4519]
[1747204996439,55.92,183.44,183.36,55.96]
[1747204996941,55.92,183.44,183.42,5.4522]
[1747204998543,55.92,183.44,183.43,5.4519]
[1747204998942,4.21604194,183.45,183.36,55.96]
[1747204999140,55.9,183.45,183.36,55.96]
[1747204999336,365.8197,183.47,183.36,55.96]
[1747204999536,55.9,183.45,183.36,55.96]
[1747204999739,55.9,183.45,183.44,5.4516]
[1747205000037,55.9,183.46,183.44,5.4516]
[1747205000237,55.9,183.46,183.45,5.4513]
[1747205000638,364.0,183.47,183.4,55.9]
[1747205000836,1.8542,183.5,183.4,55.9]
[1747205001037,55.9,183.49,183.4,55.9]
[1747205002039,55.9,183.49,183.46,5.4507]
[1747205002841,61.3501,183.49,183.46,5.4507]
[1747205003140,4.21604194,183.48,183.4,55.9]
[1747205003343,0.97843371,183.47,183.4,55.9]
[1747205003637,5.4515,183.45,183.4,55.9]
[1747205003840,55.88,183.44,183.42,5.452]
[1747205004342,55.88,183.44,183.4,55.9]
[1747205006843,55.88,183.44,183.43,5.4519]
[1747205007239,61.3316,183.44,183.41,5.4524]
[1747205007941,61.3316,183.44,183.42,5.4522]
[1747205008142,55.88,183.44,183.42,5.4522]
[1747205009043,55.88,183.44,183.43,5.4519]
[1747205009741,471.46,183.54,183.4,55.9]
[1747205010041,9.66604194,183.5,183.4,55.9]
[1747205010444,0.97835959,183.49,183.46,5.4508]
[1747205010640,0.97835959,183.49,183.4,55.9]
[1747205010941,6.42855959,183.49,183.46,5.4509]
[1747205011243,5.4502,183.49,183.46,5.4509]
[1747205012045,55.86,183.48,183.46,5.4509]
[1747205012437,5.4502,183.49,183.46,5.4509]
[1747205012640,55.86,183.48,183.46,5.4509]
[1747205013042,60.09604194,183.47,183.35,55.88]
[1747205013238,4.21604194,183.44,183.35,55.88]
[1747205013441,55.86,183.43,183.35,55.88]
[1747205014246,5.4526,183.41,183.38,5.4531]
[1747205014747,5.4522,183.42,183.38,5.4531]
[1747205015046,5.4522,183.42,183.39,5.4531]
[1747205016746,5.4534,183.39,183.36,5.4539]
[1747205016945,61.3134,183.39,183.36,5.4539]
[1747205017351,55.86,183.39,183.37,5.4536]
[1747205017750,55.86,183.39,183.35,55.88]
[1747205019953,55.86,183.39,183.36,5.4538]
[1747205020753,61.3132,183.39,183.37,5.4537]
[1747205021053,55.86,183.39,183.32,471.34]
[1747205021757,61.3131,183.39,183.36,5.4538]
[1747205022156,55.86,183.39,183.35,5.4542]
[1747205022355,4.21604194,183.38,183.35,5.4542]
[1747205023054,5.4537,183.37,183.35,5.4542]
[1747205023251,4.21604194,183.38,183.35,5.4542]
[1747205024059,4.21604194,183.38,183.31,55.88]
[1747205024460,4.21604194,183.38,183.35,5.4541]
[1747205024660,4.21604194,183.38,183.31,55.88]
[1747205025062,4.21604194,183.38,183.36,5.4537]
[1747205025866,4.21604194,183.38,183.37,5.4537]
[1747205026161,4.21604194,183.38,183.31,55.88]
[1747205026758,4.21604194,183.35,183.21,10.9168]
[1747205026964,4.21604194,183.32,183.21,66.8168]
[1747205027168,4.21604194,183.29,183.21,66.8168]
[1747205027366,55.86,183.28,183.27,5.4567]
[1747205032363,3.4611,183.31,183.21,66.8168]
[1747205032364,5.4545,183.35,183.21,66.8168]
[1747205032560,4.21604194,183.34,183.21,111.76]
[1747205033466,4.21604194,183.34,183.23,10.9157]
[1747205034268,4.21604194,183.34,183.33,5.4549]
[1747205034461,4.21604194,183.34,183.25,55.86]
[1747205034967,4.21604194,183.34,183.33,5.4549]
[1747205035161,4.21604194,183.34,183.25,55.86]
[1747205035662,60.07604194,183.34,183.33,5.4549]
[1747205035863,55.86,183.34,183.33,5.4549]
[1747205036270,60.07604194,183.34,183.25,111.72]
[1747205036474,60.07604194,183.34,183.23,66.7757]
[1747205036672,4.21604194,183.31,183.23,66.7757]
[1747205036873,4.21604194,183.31,183.3,5.4558]
[1747205037076,4.21604194,183.31,183.23,66.7757]
[1747205037575,4.21604194,183.31,183.3,5.4558]
[1747205040477,4.21604194,183.31,183.23,55.86]
[1747205040678,55.86,183.3,183.23,55.86]
[1747205041077,55.86,183.3,183.29,5.4561]
[1747205044276,4.21604194,183.31,183.3,5.4558]
[1747205044478,55.86,183.33,183.23,55.86]
[1747205044871,55.86,183.33,183.32,5.4552]
[1747205046478,55.86,183.33,183.28,55.86]
[1747205046981,55.86,183.33,183.29,5.4559]
[1747205047383,55.86,183.33,183.28,55.86]
[1747205047579,55.86,183.33,183.3,5.4557]
[1747205047980,61.3149,183.33,183.3,5.4557]
[1747205048884,5.4552,183.32,183.3,5.4557]
[1747205049182,5.4552,183.32,183.28,55.86]
[1747205049183,5.4552,183.32,183.29,5.4559]
[1747205049785,5.4555,183.31,183.28,61.3161]
[1747205050082,4.21604194,183.31,183.23,55.86]
[1747205050686,5.4562,183.29,183.25,5.457]
[1747205050882,61.2962,183.29,183.25,5.457]
[1747205051181,61.2962,183.29,183.23,55.86]
[1747205051986,61.2962,183.29,183.25,5.457]
[1747205052986,61.2962,183.29,183.26,5.4569]
[1747205053181,61.2962,183.29,183.23,55.86]
[1747205053687,55.84,183.29,183.27,5.4565]
[1747205054186,61.2961,183.29,183.27,5.4565]
[1747205054381,61.2961,183.29,183.26,5.4569]
[1747205055091,5.4564,183.28,183.26,5.4569]
[1747205057489,55.84,183.29,183.23,5.4576]
[1747205057680,55.84,183.29,183.2,471.54]
[1747205057884,4.21604194,183.28,183.2,471.54]
[1747205058591,5.4569,183.27,183.24,5.4574]
[1747205059786,5.4565,183.28,183.2,471.54]
[1747205059992,55.84,183.29,183.2,471.54]
[1747205060490,61.2961,183.29,183.2,471.54]
[1747205061689,55.84,183.29,183.2,471.54]
[1747205062990,55.84,183.29,183.28,5.4564]
[1747205065588,4.21604194,183.32,183.31,5.4555]
[1747205065888,55.82,183.32,183.23,55.82]
[1747205067294,55.82,183.33,183.23,66.7355]
[1747205067492,55.82,183.33,183.23,72.156]
[1747205067991,55.82,183.33,183.32,5.4552]
[1747205068196,55.82,183.33,183.23,72.156]
[1747205068994,60.03604194,183.33,183.23,72.156]
[1747205069496,5.4553,183.32,183.29,5.456]
[1747205070200,5.4555,183.31,183.28,5.4563]
[1747205070591,60.03604194,183.33,183.23,55.82]
[1747205070895,4.21604194,183.3,183.21,55.82]
[1747205071098,55.82,183.29,183.21,55.82]
[1747205071298,5.4564,183.28,183.25,5.4571]
[1747205071595,55.82,183.29,183.21,55.82]
[1747205072097,55.82,183.29,183.26,5.4569]
[1747205072098,61.2763,183.29,183.26,5.4569]
[1747205072298,55.82,183.29,183.21,55.82]
[1747205074901,61.2763,183.29,183.25,5.457]
[1747205076503,5.4564,183.28,183.25,5.457]
[1747205077503,5.4564,183.28,183.26,5.4569]
[1747205079200,60.03604194,183.29,183.21,55.82]
[1747205079394,4.21604194,183.26,183.18,208.60002374]
[1747205079599,55.8,183.25,183.18,208.60002374]
[1747205080104,4.21604194,183.23,183.18,208.60002374]
[1747205080302,4.21604194,183.23,183.13,70.3423]
[1747205080501,5.4584,183.22,183.19,5.4588]
[1747205080701,55.8,183.21,183.13,70.3423]
[1747205082004,55.8,183.21,183.2,5.4587]
[1747205083000,61.2586,183.21,183.18,5.4593]
[1747205083303,55.8,183.21,183.13,55.82]
[1747205083695,4.21604194,183.23,183.13,55.82]
[1747205083901,55.8,183.22,183.13,55.82]
[1747205084409,55.8,183.22,183.2,5.4586]
[1747205084602,55.8,183.22,183.13,55.82]
[1747205084801,55.8,183.22,183.21,5.4584]
[1747205086999,4.21604194,183.25,183.13,55.82]
[1747205087207,55.8,183.24,183.13,55.82]
[1747205087404,55.8,183.24,183.13,111.62]
[1747205087704,55.8,183.24,183.23,5.4578]
[1747205089099,55.8,183.25,183.17,55.84]
[1747205090304,3.5791,183.28,183.26,5.4567]
[1747205090504,55.8,183.27,183.26,5.4567]
[1747205091706,61.2567,183.27,183.24,5.4573]
[1747205091902,61.2567,183.27,183.17,55.84]
[1747205093608,61.2567,183.27,183.24,5.4574]
[1747205094206,61.2567,183.27,183.25,5.4572]
[1747205094406,55.8,183.27,183.17,55.84]
[1747205095804,55.8,183.27,183.25,5.4572]
[1747205096607,55.8,183.27,183.24,5.4575]
[1747205096809,61.2567,183.27,183.24,5.4575]
[1747205096996,55.8,183.27,183.17,55.84]
[1747205097307,55.8,183.27,183.25,5.4571]
[1747205098610,55.8,183.27,183.26,5.457]
[1747205099210,3.5276,183.29,183.17,55.84]
[1747205099406,55.78,183.28,183.17,55.84]
[1747205099605,3.5276,183.29,183.17,111.62]
[1747205099806,55.78,183.27,183.26,5.4567]
[1747205105107,55.78,183.27,183.17,55.84]
[1747205105713,55.78,183.27,183.26,5.457]
[1747205110312,8.9837,183.29,183.26,5.457]
[1747205110513,55.76,183.28,183.26,5.457]
[1747205111510,55.76,183.28,183.24,5.4575]
[1747205111713,5.4567,183.27,183.24,5.4575]
[1747205112013,55.76,183.28,183.23,5.4577]
[1747205112214,5.457,183.26,183.23,5.4577]
[1747205113810,9.67284194,183.27,183.24,5.4575]
[1747205114713,4.21604194,183.27,183.17,55.78]
[1747205115210,9.67274194,183.27,183.25,5.4571]
[1747205115515,9.67274194,183.27,183.17,55.78]
[1747205115813,9.67274194,183.27,183.24,5.4574]
[1747205116313,9.67274194,183.27,183.17,55.78]
[1747205117011,55.74,183.26,183.17,55.78]
[1747205118317,55.74,183.26,183.22,5.4581]
[1747205118517,55.74,183.26,183.17,55.78]
[1747205119213,55.74,183.26,183.25,5.4572]
[1747205119619,3.5276,183.29,183.17,66.699]
[1747205119819,55.74,183.26,183.17,122.439]
[1747205120017,55.74,183.26,183.25,5.4572]
[1747205121520,55.74,183.26,183.21,55.72]
[1747205122321,61.197,183.26,183.21,55.72]
[1747205123722,55.74,183.26,183.21,55.72]
[1747205124217,61.1972,183.26,183.23,5.4578]
[1747205124616,55.74,183.26,183.23,5.4578]
[1747205125220,55.74,183.26,183.21,5.4582]
[1747205125419,55.74,183.26,183.17,55.72]
[1747205125619,111.46,183.26,183.17,55.72]
[1747205126428,5.4576,183.24,183.22,5.4581]
[1747205126625,5.4576,183.24,183.17,55.72]
[1747205126822,111.46,183.26,183.17,55.72]
[1747205127126,4.21604194,183.24,183.17,55.72]
[1747205127322,4.21604194,183.21,183.12,55.74]
[1747205127526,55.74,183.2,183.12,55.74]
[1747205128227,55.74,183.2,183.18,5.459]
[1747205130832,55.74,183.2,183.12,55.74]
[1747205131128,4.21604194,183.18,183.09,55.74]
[1747205131328,4.21604194,183.18,183.17,5.4596]
[1747205131832,59.2704,183.2,183.17,5.4596]
[1747205132330,64.7292,183.2,183.17,5.4596]
[1747205133831,5.4592,183.19,183.09,55.74]
[1747205134033,59.2704,183.2,183.09,55.74]
[1747205134532,4.21604194,183.18,183.09,55.74]
[1747205134933,5.4596,183.17,183.14,5.4605]
[1747205135134,55.74,183.16,183.09,55.74]
[1747205135531,61.2001,183.16,183.13,5.4608]
[1747205137232,61.2001,183.16,183.09,55.74]
[1747205137233,55.74,183.16,183.14,5.4605]
[1747205137535,55.74,183.16,183.09,55.74]
[1747205137736,61.2001,183.16,183.13,5.4608]
[1747205138130,61.2,183.16,183.13,5.4608]
[1747205138337,55.74,183.16,183.09,55.74]
[1747205139937,61.2,183.16,183.09,55.74]
[1747205140333,61.2,183.16,183.0,5.1666019]
[1747205140334,4.21604194,183.15,183.0,5.1666019]
[1747205140540,55.74,183.14,183.08,5.4621]
[1747205140734,4.21604194,183.12,183.04,55.74]
[1747205140938,9.67904194,183.06,183.03,5.4636]
[1747205141138,55.72,183.05,183.03,5.4636]
[1747205143738,55.72,183.05,183.04,5.4635]
[1747205146147,55.72,183.05,183.03,5.4637]
[1747205147040,59.93604194,183.05,182.95,55.76]
[1747205147238,5.4636,183.04,182.95,55.76]
[1747205147441,55.78,183.04,182.95,55.76]
[1747205147644,61.2436,183.04,183.0,5.4645]
[1747205148352,61.2436,183.04,182.95,55.76]
[1747205148539,61.2436,183.04,183.0,5.4645]
[1747205148743,61.2436,183.04,182.95,55.76]
[1747205150043,3.5178,183.06,182.95,55.76]
[1747205150249,55.74,183.05,183.03,5.4636]
[1747205151249,55.74,183.05,182.95,55.76]
[1747205151250,55.74,183.05,183.04,5.4635]
[1747205151948,1.7365,183.07,182.95,55.76]
[1747205152140,5.4622,183.09,182.95,55.76]
[1747205152141,55.74,183.06,182.95,111.5]
[1747205152749,55.74,183.06,183.05,5.4632]
[1747205153747,4.21604194,183.1,183.0,55.74]
[1747205154054,55.74,183.09,183.0,55.74]
[1747205154552,5.4628,183.07,183.04,5.4635]
[1747205154849,55.74,183.09,183.0,55.74]
[1747205155045,4.21604194,183.1,183.0,55.74]
[1747205155252,3.5451,183.11,183.0,111.48]
[1747205155444,0.98054168,183.09,183.01,5.3354]
[1747205155746,55.74,183.11,183.01,5.3354]
[1747205156153,7.76904194,183.17,183.02,4.21604194]
[1747205156349,55.74,183.15,183.02,4.21604194]
[1747205157250,61.2003,183.15,183.13,5.4608]
[1747205157650,55.74,183.15,183.13,5.4608]
[1747205157853,527.6,183.16,183.14,5.4605]
[1747205158154,55.74,183.15,183.14,5.4605]
[1747205159753,55.74,183.2,183.1,55.74]
[1747205160054,55.74,183.19,183.1,55.74]
[1747205160955,55.74,183.19,183.17,5.4594]
[1747205161255,425.77674194,183.22,183.1,55.74]
[1747205161450,55.74,183.21,183.19,5.4588]
[1747205161751,475.48,183.22,183.15,55.74]
[1747205162054,364.0,183.22,183.15,55.74]
[1747205163466,55.74,183.26,183.16,55.72]
[1747205163653,55.72,183.25,183.17,55.72]
[1747205163956,55.74,183.26,183.23,5.4578]
[1747205164157,111.46,183.26,183.17,55.72]
[1747205164560,55.72,183.26,183.17,55.72]
[1747205165861,4.21604194,183.3,183.17,55.72]
[1747205166058,55.72,183.29,183.17,55.72]
[1747205166353,0.97947913,183.28,183.17,55.72]
[1747205166561,4.21604194,183.27,183.17,55.72]
[1747205166756,55.72,183.26,183.17,55.72]
[1747205167059,5.4581,183.23,183.19,5.4588]
[1747205167358,5.4581,183.23,183.17,55.72]
[1747205167965,4.21604194,183.24,183.17,55.72]
[1747205168253,55.72,183.26,183.13,527.76]
[1747205168459,55.72,183.23,183.2,5.4585]
[1747205168665,55.72,183.23,183.13,527.76]
[1747205169060,5.4582,183.22,183.18,5.4592]
[1747205169361,5.4582,183.22,183.13,527.76]
[1747205169762,5.4587,183.21,183.13,527.76]
[1747205169961,59.93604194,183.23,183.13,527.76]
[1747205170162,5.4585,183.21,183.18,5.4593]
[1747205170365,55.72,183.22,183.13,55.72]
[1747205170660,59.3589,183.22,183.16,5.4597]
[1747205170963,5.4589,183.2,183.16,5.4597]
[1747205171265,55.72,183.19,183.16,5.4597]
[1747205171563,55.72,183.19,183.17,5.4595]
[1747205171862,55.7,183.19,183.13,55.72]
[1747205172167,55.7,183.19,183.18,5.4593]
[1747205172759,55.7,183.19,183.17,5.4596]
[1747205172964,55.7,183.19,183.13,55.72]
[1747205173860,111.42,183.19,183.09,55.72]
[1747205174167,115.63604194,183.19,183.09,55.72]
[1747205174369,1.7598,183.18,183.09,55.72]
[1747205174556,5.4601,183.16,183.09,55.72]
[1747205174763,55.76,183.15,183.09,55.72]
[1747205175768,55.76,183.15,183.13,5.4606]
[1747205176863,3.5226,183.18,183.09,55.72]
[1747205177069,55.9,183.17,183.09,55.72]
[1747205177364,55.9,183.17,183.16,5.4597]
[1747205177969,55.9,183.17,183.09,55.72]
[1747205178165,55.9,183.17,183.14,5.4603]
[1747205178369,61.3599,183.17,183.14,5.4603]
[1747205179967,55.9,183.17,183.14,5.4603]
[1747205180172,55.72,183.2,183.09,55.72]
[1747205180372,56.1,183.19,183.09,55.72]
[1747205181173,5.4596,183.18,183.15,5.4601]
[1747205181870,61.5591,183.19,183.16,5.4599]
[1747205182073,56.1,183.19,183.09,55.72]
[1747205182371,61.5591,183.19,183.16,5.4597]
[1747205182572,56.1,183.19,183.09,55.72]
[1747205183675,5.4593,183.18,183.09,55.72]
[1747205184874,55.96,183.17,183.14,5.4603]
[1747205185375,55.96,183.17,183.09,55.72]
[1747205185874,55.72,183.2,183.09,55.72]
[1747205186076,372.8719,183.23,183.1,55.96]
[1747205186283,55.96,183.22,183.1,55.96]
[1747205186776,61.4184,183.22,183.19,5.459]
[1747205187172,61.4184,183.22,183.14,56.08]
[1747205187173,55.96,183.22,183.14,56.08]
[1747205187379,3.4139,183.23,183.14,56.08]
[1747205187578,56.16,183.25,183.14,56.08]
[1747205187774,56.18,183.26,183.15,61.596]
[1747205187979,60.39604194,183.26,183.15,61.596]
[1747205188179,5.4576,183.24,183.2,5.4585]
[1747205188482,5.4576,183.24,183.15,61.596]
[1747205188779,5.4576,183.24,183.21,5.4584]
[1747205189182,60.39604194,183.26,183.15,61.596]
[1747205189375,60.39604194,183.26,183.23,5.4578]
[1747205189572,56.18,183.26,183.15,61.596]
[1747205190282,56.68,183.26,183.15,61.596]
[1747205190475,56.66,183.26,183.15,61.596]
[1747205190675,56.66,183.26,183.24,5.4575]
[1747205191882,3.6573,183.28,183.19,56.08]
[1747205192083,56.6,183.27,183.19,56.08]
[1747205192583,60.2573,183.28,183.26,5.457]
[1747205193886,65.7137,183.28,183.25,5.4572]
[1747205194183,60.2573,183.28,183.19,56.08]
[1747205194396,3.6573,183.28,183.19,56.08]
[1747205194581,60.2373,183.28,183.19,56.08]
[1747205195085,60.2173,183.28,183.26,5.4569]
[1747205195582,5.4551,183.33,183.19,56.08]
[1747205195777,0.97934749,183.32,183.2,112.6]
[1747205196187,5.4556,183.31,183.27,5.4564]
[1747205196684,5.4556,183.31,183.26,5.4569]
[1747205196885,4.21604194,183.34,183.2,112.6]
[1747205197086,56.86,183.33,183.2,112.6]
[1747205197591,62.3149,183.33,183.29,5.4559]
[1747205198285,5.4552,183.32,183.29,5.4559]
[1747205198982,5.4552,183.32,183.25,56.06]
[1747205199185,5.4555,183.31,183.28,5.4561]
[1747205199387,56.86,183.33,183.28,5.4561]
[1747205199591,56.86,183.33,183.29,5.4559]
[1747205200390,62.3149,183.33,183.3,5.4556]